fUSD/lending_fUSD_20250906
["ID","MTS","AMOUNT","RATE_DAILY","PERIOD"]
[383922087,1757172699626,-400.0,0.00036711,8]
[383922088,1757172699636,-400.0,0.00036711,8]
[383922089,1757172699646,-400.0,0.00036711,2]
[383922090,1757172699655,-412.0,0.00036711,8]
[383922091,1757172699665,-400.0,0.00036711,8]
[383922092,1757172699674,-400.0,0.00036711,8]
[383922093,1757172699683,-951.07,0.00036711,8]
[383922094,1757172699692,-400.0,0.00036711,8]
[383922095,1757172699702,-400.0,0.00036711,8]
[383922096,1757172699711,-400.0,0.00036711,8]
[383922097,1757172699720,-400.0,0.00036711,8]
[383922098,1757172699732,-400.0,0.00036711,8]
[383922099,1757172699743,-400.0,0.00036711,8]
[383922100,1757172699752,-400.0,0.00036711,8]
[383922101,1757172699762,-400.0,0.00036711,8]
[383922102,1757172699771,-624.31,0.00036711,8]
[383922103,1757172699780,-342.89989975,0.00036711,8]
[383922104,1757172699790,-802.45,0.00036711,8]
[383922105,1757172699801,-353.08605473,0.00036711,8]
[383922106,1757172699811,-400.0,0.00036711,8]
[383922107,1757172699821,-498.58292581,0.00036711,8]
[383922108,1757172699830,-400.0,0.00036711,8]
[383922109,1757172699841,-400.0,0.00036711,8]
[383922110,1757172699851,-400.0,0.00036711,8]
[383922111,1757172699860,-400.0,0.00036711,8]
[383922112,1757172699870,-400.0,0.00036711,8]
[383922113,1757172699881,-400.0,0.00036711,8]
[383922114,1757172699891,-400.0,0.00036711,8]
[383922115,1757172699902,-504.86,0.00036711,8]
[383922116,1757172699911,-766.84,0.00036711,8]
[383922117,1757172699922,-412.7,0.00036711,8]
[383922118,1757172699931,-151.33484181,0.00036711,8]
[383922119,1757172699941,-424.59,0.00036711,7]
[383922120,1757172699952,-400.0,0.00036711,8]
[383922121,1757172699963,-400.0,0.00036711,8]
[383922122,1757172699972,-400.0,0.00036711,8]
[383922123,1757172699981,-400.0,0.00036711,8]
[383922124,1757172699991,-400.0,0.00036711,8]
[383922125,1757172700001,-468.3,0.00036711,8]
[383922126,1757172700010,-400.0,0.00036711,8]
[383922127,1757172700020,-400.0,0.00036711,8]
[383922128,1757172700029,-1774.6,0.00036711,8]
[383922129,1757172700038,-489.02,0.00036711,8]
[383922130,1757172700047,-400.0,0.00036711,8]
[383922131,1757172700057,-480.4375316,0.00036711,8]
[383922132,1757172700066,-150.0,0.00036711,120]
[383922133,1757172700076,-400.0,0.00036711,8]
[383922134,1757172700086,-400.0,0.00036711,8]
[383922135,1757172700095,-445.23683288,0.00036711,8]
[383922136,1757172700105,-619.29,0.00036711,8]
[383922137,1757172700115,-478.37,0.00036711,8]
[383922138,1757172700124,-400.0,0.00036711,8]
[383922139,1757172700133,-270.18,0.00036711,8]
[383922140,1757172700143,-400.0,0.00036711,8]
[383922141,1757172700153,-426.98,0.00036711,8]
[383922142,1757172700163,-400.0,0.00036711,8]
[383922143,1757172700173,-400.0,0.00036711,8]
[383922144,1757172700182,-400.0,0.00036711,8]
[383922145,1757172700192,-556.5,0.00036711,8]
[383922146,1757172700202,-5845.89,0.00036711,8]
[383922147,1757172700211,-400.0,0.00036711,8]
[383922148,1757172700221,-400.0,0.00036711,8]
[383922149,1757172700230,-1615.84,0.00036711,8]
[383922150,1757172700240,-400.0,0.00036711,8]
[383922151,1757172700250,-400.0,0.00036711,8]
[383922152,1757172700263,-400.0,0.00036711,8]
[383922153,1757172700272,-1654.33,0.00036711,8]
[383922154,1757172700281,-191.0609873,0.00036711,8]
[383922155,1757172700291,-634.1,0.00036711,8]
[383922156,1757172700301,-400.0,0.00036711,8]
[383922157,1757172700311,-400.0,0.00036711,8]
[383922158,1757172700322,-400.0,0.00036711,8]
[383922159,1757172700332,-406.53019611,0.00036711,8]
[383922160,1757172700341,-400.0,0.00036711,8]
[383922161,1757172700351,-400.0,0.00036711,8]
[383922162,1757172700361,-400.0,0.00036711,8]
[383922163,1757172700370,-400.0,0.00036711,8]
[383922164,1757172700380,-3118.41,0.00036711,8]
[383922165,1757172700390,-400.0,0.00036711,8]
[383922166,1757172700400,-999.44,0.00036711,8]
[383922167,1757172700409,-955.89,0.00036711,8]
[383922168,1757172700419,-794.28,0.00036711,8]
[383922169,1757172700429,-400.0,0.00036711,8]
[383922170,1757172700438,-895.75,0.00036711,8]
[383922171,1757172700447,-400.0,0.00036711,8]
[383922172,1757172700457,-1108.69,0.00036711,8]
[383922173,1757172700466,-1000.18,0.00036711,8]
[383922174,1757172700476,-400.0,0.00036711,8]
[383922175,1757172700485,-699.09,0.00036711,8]
[383922176,1757172700494,-412.20004677,0.00036711,8]
[383922177,1757172700503,-400.0,0.00036711,8]
[383922178,1757172700513,-646.87,0.00036711,8]
[383922179,1757172700521,-646.87,0.00036711,8]
[383922180,1757172700530,-646.87,0.00036711,8]
[383922181,1757172700539,-400.0,0.00036711,8]
[383922182,1757172700548,-400.0,0.00036711,8]
[383922183,1757172700558,-418.49903171,0.00036711,8]
[383922184,1757172700566,-400.0,0.00036711,8]
[383922185,1757172700576,-400.0,0.00036711,8]
[383922186,1757172700585,-656.84,0.00036711,8]
[383922187,1757172700594,-400.0,0.00036711,8]
[383922188,1757172700603,-400.0,0.00036711,8]
[383922189,1757172700612,-400.0,0.00036711,8]
[383922190,1757172700621,-400.0,0.00036711,8]
[383922191,1757172700630,-2132.96,0.00036711,8]
[383922192,1757172700639,-400.0,0.00036711,8]
[383922193,1757172700648,-400.0,0.00036711,8]
[383922194,1757172700657,-1154.3,0.00036711,8]
[383922195,1757172700665,-400.0,0.00036711,8]
[383922196,1757172700675,-1000.0,0.00036711,8]
[383922197,1757172700687,-440.44,0.00036711,8]
[383922198,1757172700698,-2561.85,0.00036711,8]
[383922199,1757172700707,-400.0,0.00036711,8]
[383922200,1757172700717,-400.0,0.00036711,8]
[383922201,1757172700726,-400.0,0.00036711,8]
[383922202,1757172700736,-400.0,0.00036711,8]
[383922203,1757172700745,-400.0,0.00036711,8]
[383922204,1757172700755,-2611.17,0.00036711,8]
[383922205,1757172700764,-400.0,0.00036711,8]
[383922206,1757172700774,-400.0,0.00036711,8]
[383922207,1757172700784,-400.0,0.00036711,8]
[383922208,1757172700793,-400.0,0.00036711,8]
[383922209,1757172700803,-2841.49,0.00036711,8]
[383922210,1757172700812,-400.0,0.00036711,8]
[383922211,1757172700821,-266.13725442,0.00036712,2]
[383922212,1757172700831,-400.0,0.00036712,8]
[383922213,1757172700840,-151.0,0.00036712,30]
[383922214,1757172700849,-225.23828,0.00036712,30]
[383922215,1757172700858,-151.0,0.00036712,30]
[383922216,1757172700868,-225.23828,0.00036712,30]
[383922217,1757172700877,-225.23828,0.00036712,30]
[383922218,1757172700887,-400.0,0.00036712,8]
[383922219,1757172700896,-225.23828,0.00036712,30]
[383922220,1757172700906,-151.0,0.00036712,30]
[383922221,1757172700915,-233.513658,0.00036712,30]
[383922222,1757172700924,-410.93,0.00036712,8]
[383922223,1757172700934,-400.0,0.00036712,8]
[383922224,1757172700942,-400.0,0.00036712,8]
[383922225,1757172700952,-151.0,0.00036712,30]
[383922226,1757172700961,-400.0,0.00036712,8]
[383922227,1757172700971,-327.88560582,0.00036712,8]
[383922228,1757172700980,-405.98299925,0.00036712,8]
[383922229,1757172700990,-400.0,0.00036712,8]
[383922230,1757172700999,-151.0,0.00036712,30]
[383922231,1757172701008,-151.0,0.00036712,30]
[383922232,1757172701017,-151.0,0.00036712,30]
[383922233,1757172701026,-400.0,0.00036712,8]
[383922234,1757172701036,-151.0,0.00036712,30]
[383922235,1757172701045,-151.0,0.00036712,30]
[383922236,1757172701054,-151.0,0.00036712,30]
[383922237,1757172701064,-400.0,0.00036712,8]
[383922238,1757172701073,-400.0,0.00036712,8]
[383922239,1757172701082,-400.0,0.00036712,8]
[383922240,1757172701091,-400.0,0.00036712,8]
[383922241,1757172701100,-400.0,0.00036712,8]
[383922242,1757172701110,-400.0,0.00036712,8]
[383922243,1757172701119,-400.0,0.00036712,8]
[383922244,1757172701130,-164.915259,0.00036712,30]
[383922245,1757172701141,-164.915259,0.00036712,30]
[383922246,1757172701150,-164.915259,0.00036712,30]
[383922247,1757172701160,-400.0,0.00036712,8]
[383922248,1757172701171,-400.0,0.00036712,8]
[383922249,1757172701180,-164.915259,0.00036712,30]
[383922250,1757172701189,-300.0,0.00036712,8]
[383922251,1757172701198,-400.0,0.00036712,8]
[383922252,1757172701208,-400.0,0.00036712,8]
[383922253,1757172701217,-400.0,0.00036712,8]
[383922254,1757172701226,-400.0,0.00036712,8]
[383922255,1757172701236,-400.0,0.00036712,8]
[383922256,1757172701245,-400.0,0.00036712,8]
[383922257,1757172701255,-209.07788169,0.00036712,8]
[383922258,1757172701268,-400.0,0.00036712,8]
[383922259,1757172701278,-151.0,0.00036712,30]
[383922260,1757172701287,-151.0,0.00036712,30]
[383922261,1757172701297,-151.0,0.00036712,30]
[383922262,1757172701307,-400.0,0.00036712,8]
[383922263,1757172701316,-400.0,0.00036712,8]
[383922264,1757172701325,-400.0,0.00036712,8]
[383922265,1757172701336,-400.0,0.00036712,8]
[383922266,1757172701347,-400.0,0.00036712,8]
[383922267,1757172701356,-400.0,0.00036712,8]
[383922268,1757172701366,-301.39907455,0.00036712,8]
[383922269,1757172701376,-512.09,0.00036712,8]
[383922270,1757172701386,-400.0,0.00036712,8]
[383922271,1757172701396,-400.0,0.00036712,8]
[383922272,1757172701406,-400.0,0.00036712,8]
[383922273,1757172701416,-400.0,0.00036712,8]
[383922274,1757172701426,-400.0,0.00036712,8]
[383922275,1757172701436,-534.70480961,0.00036712,8]
[383922276,1757172701446,-400.0,0.00036712,8]
[383922277,1757172701455,-400.0,0.00036712,8]
[383922278,1757172701466,-400.0,0.00036712,8]
[383922279,1757172701476,-155.678893,0.00036712,30]
[383922280,1757172701487,-400.0,0.00036712,8]
[383922281,1757172701497,-155.678893,0.00036712,30]
[383922282,1757172701506,-151.0,0.00036712,30]
[383922283,1757172701516,-155.678893,0.00036712,30]
[383922284,1757172701526,-155.678901,0.00036712,30]
[383922285,1757172701536,-410.60226481,0.00036712,8]
[383922286,1757172701545,-400.0,0.00036712,8]
[383922287,1757172701555,-400.0,0.00036712,8]
[383922288,1757172701565,-520.21,0.00036712,8]
[383922289,1757172701575,-400.0,0.00036712,8]
[383922290,1757172701585,-400.0,0.00036712,8]
[383922291,1757172701595,-400.0,0.00036712,8]
[383922292,1757172701605,-400.0,0.00036712,8]
[383922293,1757172701615,-400.0,0.00036712,8]
[383922294,1757172701625,-400.0,0.00036712,8]
[383922295,1757172701635,-400.0,0.00036712,8]
[383922296,1757172701645,-400.0,0.00036712,8]
[383922297,1757172701657,-400.0,0.00036712,8]
[383922298,1757172701668,-400.0,0.00036712,8]
[383922299,1757172701678,-374.87979095,0.00036712,8]
[383922300,1757172701687,-400.0,0.00036712,8]
[383922301,1757172701697,-400.0,0.00036712,8]
[383922302,1757172701707,-408.51737191,0.00036712,8]
[383922303,1757172701717,-400.0,0.00036712,8]
[383922304,1757172701729,-400.0,0.00036712,8]
[383922305,1757172701741,-400.0,0.00036712,8]
[383922306,1757172701756,-400.0,0.00036712,8]
[383922307,1757172701766,-390.43839184,0.00036712,8]
[383922308,1757172701775,-400.0,0.00036712,8]
[383922309,1757172701784,-400.0,0.00036712,8]
[383922310,1757172701796,-400.0,0.00036712,8]
[383922311,1757172701805,-400.0,0.00036712,8]
[383922312,1757172701816,-460.52403982,0.00036712,8]
[383922313,1757172701826,-710.35,0.00036712,120]
[383922314,1757172701837,-400.0,0.00036712,8]
[383922315,1757172701848,-400.0,0.00036712,8]
[383922316,1757172701858,-400.0,0.00036712,8]
[383922317,1757172701868,-400.0,0.00036712,8]
[383922318,1757172701877,-400.0,0.00036712,8]
[383922319,1757172701887,-400.0,0.00036712,8]
[383922320,1757172701897,-400.0,0.00036712,8]
[383922321,1757172701907,-151.0,0.00036712,30]
[383922322,1757172701917,-400.0,0.00036712,8]
[383922323,1757172701927,-400.0,0.00036712,8]
[383922324,1757172701937,-805.82,0.00036712,8]
[383922325,1757172701947,-400.0,0.00036712,8]
[383922326,1757172701958,-400.0,0.00036712,8]
[383922327,1757172701968,-400.0,0.00036712,8]
[383922328,1757172701978,-400.0,0.00036712,8]
[383922329,1757172701987,-400.0,0.00036712,8]
[383922330,1757172701997,-400.0,0.00036712,8]
[383922331,1757172702006,-151.291649,0.00036712,30]
[383922332,1757172702016,-151.291649,0.00036712,30]
[383922333,1757172702025,-400.0,0.00036712,8]
[383922334,1757172702035,-151.291649,0.00036712,30]
[383922335,1757172702045,-400.0,0.00036712,8]
[383922336,1757172702055,-151.291658,0.00036712,30]
[383922337,1757172702064,-400.0,0.00036712,8]
[383922338,1757172702074,-400.0,0.00036712,8]
[383922339,1757172702083,-4029.69,0.00036712,5]
[383922340,1757172702095,-400.0,0.00036712,8]
[383922341,1757172702105,-400.0,0.00036712,8]
[383922342,1757172702115,-400.0,0.00036712,8]
[383922343,1757172702125,-597.53,0.00036712,8]
[383922344,1757172702135,-477.22,0.00036712,8]
[383922345,1757172702147,-400.0,0.00036712,8]
[383922346,1757172702157,-414.08806849,0.00036712,8]
[383922347,1757172702167,-400.0,0.00036712,8]
[383922348,1757172702177,-400.0,0.00036712,8]
[383922349,1757172702187,-400.0,0.00036712,8]
[383922350,1757172702197,-1011.87,0.00036712,8]
[383922351,1757172702206,-400.0,0.00036712,8]
[383922352,1757172702216,-400.0,0.00036712,8]
[383922353,1757172702226,-400.0,0.00036712,8]
[383922354,1757172702235,-162.43509822,0.00036712,8]
[383922355,1757172702246,-400.0,0.00036712,8]
[383922356,1757172702260,-400.0,0.00036712,8]
[383922357,1757172702272,-400.0,0.00036712,8]
[383922358,1757172702282,-400.0,0.00036712,8]
[383922359,1757172702292,-400.0,0.00036712,8]
[383922360,1757172702302,-400.0,0.00036712,8]
[383922361,1757172702311,-400.0,0.00036712,8]
[383922362,1757172702321,-400.0,0.00036712,8]
[383922363,1757172702333,-400.0,0.00036712,8]
[383922364,1757172702343,-897.77,0.00036712,8]
[383922365,1757172702354,-400.0,0.00036712,8]
[383922366,1757172702364,-400.0,0.00036712,8]
[383922367,1757172702374,-400.0,0.00036712,8]
[383922368,1757172702384,-400.0,0.00036712,8]
[383922369,1757172702394,-400.0,0.00036712,8]
[383922370,1757172702404,-400.0,0.00036712,8]
[383922371,1757172702415,-478.1,0.00036712,8]
[383922372,1757172702426,-400.0,0.00036712,8]
[383922373,1757172702436,-400.0,0.00036712,8]
[383922374,1757172702446,-590.89,0.00036712,8]
[383922375,1757172702456,-400.0,0.00036712,8]
[383922376,1757172702467,-400.0,0.00036712,8]
[383922377,1757172702476,-400.0,0.00036712,8]
[383922378,1757172702487,-400.0,0.00036712,8]
[383922379,1757172702497,-400.0,0.00036712,8]
[383922380,1757172702507,-380.60204553,0.00036712,8]
[383922381,1757172702518,-400.0,0.00036712,8]
[383922382,1757172702527,-400.0,0.00036712,8]
[383922383,1757172702537,-400.0,0.00036712,8]
[383922384,1757172702547,-400.0,0.00036712,8]
[383922385,1757172702557,-400.0,0.00036712,8]
[383922386,1757172702567,-400.0,0.00036712,8]
[383922387,1757172702577,-400.0,0.00036712,8]
[383922388,1757172702587,-440.85,0.00036712,8]
[383922389,1757172702597,-440.62,0.00036712,8]
[383922390,1757172702607,-400.0,0.00036712,8]
[383922391,1757172702617,-400.0,0.00036712,8]
[383922392,1757172702627,-400.0,0.00036712,8]
[383922393,1757172702637,-400.0,0.00036712,8]
[383922394,1757172702647,-400.0,0.00036712,8]
[383922395,1757172702657,-400.0,0.00036712,8]
[383922396,1757172702667,-400.0,0.00036712,8]
[383922397,1757172702677,-400.0,0.00036712,8]
[383922398,1757172702687,-1063.0,0.00036712,8]
[383922399,1757172702696,-400.0,0.00036712,8]
[383922400,1757172702706,-400.0,0.00036712,8]
[383922401,1757172702716,-400.9,0.00036712,8]
[383922402,1757172702728,-400.0,0.00036712,8]
[383922403,1757172702738,-400.0,0.00036712,8]
[383922404,1757172702748,-675.45,0.00036712,8]
[383922405,1757172702758,-482.04,0.00036712,8]
[383922406,1757172702768,-563.8,0.00036712,8]
[383922407,1757172702778,-400.0,0.00036712,8]
[383922408,1757172702787,-1019.63,0.00036712,8]
[383922409,1757172702798,-436.24,0.00036712,8]
[383922410,1757172702809,-506.74192572,0.00036712,8]
[383922411,1757172702821,-454.0,0.00036712,8]
[383922412,1757172702831,-400.0,0.00036712,8]
[383922413,1757172702842,-400.0,0.00036712,8]
[383922414,1757172702853,-400.0,0.00036712,8]
[383922415,1757172702864,-400.0,0.00036712,8]
[383922416,1757172702875,-400.0,0.00036712,8]
[383922417,1757172702885,-400.0,0.00036712,8]
[383922418,1757172702896,-703.69,0.00036712,8]
[383922419,1757172702906,-400.0,0.00036712,8]
[383922420,1757172702918,-400.0,0.00036712,8]
[383922421,1757172702928,-400.0,0.00036712,8]
[383922422,1757172702938,-400.0,0.00036712,8]
[383922423,1757172702948,-400.0,0.00036712,8]
[383922424,1757172702958,-269.84391126,0.00036712,8]
[383922425,1757172702967,-400.0,0.00036712,8]
[383922426,1757172702977,-400.0,0.00036712,8]
[383922427,1757172702986,-400.0,0.00036712,8]
[383922428,1757172702996,-400.0,0.00036712,8]
[383922429,1757172703007,-359.97667384,0.00036712,8]
[383922430,1757172703016,-407.35,0.00036712,8]
[383922431,1757172703027,-150.94169574,0.00036712,8]
[383922432,1757172703040,-400.0,0.00036712,8]
[383922433,1757172703049,-400.0,0.00036712,8]
[383922434,1757172703060,-400.0,0.00036712,8]
[383922435,1757172703070,-400.0,0.00036712,8]
[383922436,1757172703081,-400.0,0.00036712,8]
[383922437,1757172703091,-400.0,0.00036712,8]
[383922438,1757172703101,-400.0,0.00036712,8]
[383922439,1757172703110,-400.0,0.00036712,8]
[383922440,1757172703120,-174.3956228,0.00036712,8]
[383922441,1757172703131,-400.0,0.00036712,8]
[383922442,1757172703142,-400.0,0.00036712,8]
[383922443,1757172703152,-400.0,0.00036712,8]
[383922444,1757172703164,-400.0,0.00036712,8]
[383922445,1757172703174,-480.23,0.00036712,8]
[383922446,1757172703184,-400.0,0.00036712,8]
[383922447,1757172703195,-400.0,0.00036712,8]
[383922448,1757172703205,-400.0,0.00036712,8]
[383922449,1757172703215,-400.0,0.00036712,8]
[383922450,1757172703226,-400.0,0.00036712,8]
[383922451,1757172703236,-400.0,0.00036712,8]
[383922452,1757172703246,-512.18,0.00036712,8]
[383922453,1757172703261,-445.90610423,0.00036712,8]
[383922454,1757172703271,-400.0,0.00036712,8]
[383922455,1757172703280,-400.0,0.00036712,8]
[383922456,1757172703290,-400.0,0.00036712,8]
[383922457,1757172703302,-590.96,0.00036712,8]
[383922458,1757172703312,-400.0,0.00036712,8]
[383922459,1757172703322,-400.0,0.00036712,8]
[383922460,1757172703333,-400.0,0.00036712,8]
[383922461,1757172703343,-400.0,0.00036712,8]
[383922462,1757172703353,-400.0,0.00036712,8]
[383922463,1757172703363,-400.0,0.00036712,8]
[383922464,1757172703373,-400.0,0.00036712,8]
[383922465,1757172703383,-400.0,0.00036712,8]
[383922466,1757172703395,-400.0,0.00036712,8]
[383922467,1757172703406,-336.88548224,0.00036712,8]
[383922468,1757172703417,-400.0,0.00036712,8]
[383922469,1757172703428,-400.0,0.00036712,8]
[383922470,1757172703438,-400.0,0.00036712,8]
[383922471,1757172703449,-280.91,0.00036712,8]
[383922472,1757172703459,-400.0,0.00036712,8]
[383922473,1757172703468,-400.0,0.00036712,8]
[383922474,1757172703478,-400.0,0.00036712,8]
[383922475,1757172703488,-400.0,0.00036712,8]
[383922476,1757172703498,-400.0,0.00036712,8]
[383922477,1757172703508,-283.49991453,0.00036712,8]
[383922478,1757172703518,-400.0,0.00036712,8]
[383922479,1757172703530,-400.0,0.00036712,8]
[383922480,1757172703542,-400.0,0.00036712,8]
[383922481,1757172703552,-456.85899249,0.00036712,8]
[383922482,1757172703562,-608.37,0.00036712,8]
[383922483,1757172703573,-400.0,0.00036712,8]
[383922484,1757172703583,-434.46,0.00036712,8]
[383922485,1757172703594,-400.0,0.00036712,8]
[383922486,1757172703606,-400.0,0.00036712,8]
[383922487,1757172703616,-598.33,0.00036712,8]
[383922488,1757172703626,-502.57,0.00036712,8]
[383922489,1757172703637,-400.0,0.00036712,8]
[383922490,1757172703647,-400.0,0.00036712,8]
[383922491,1757172703658,-400.0,0.00036712,8]
[383922492,1757172703668,-406.38488861,0.00036712,8]
[383922493,1757172703678,-509.06,0.00036712,8]
[383922494,1757172703688,-400.0,0.00036712,8]
[383922495,1757172703698,-400.0,0.00036712,8]
[383922496,1757172703709,-400.0,0.00036712,8]
[383922497,1757172703719,-400.0,0.00036712,8]
[383922498,1757172703729,-400.0,0.00036712,8]
[383922499,1757172703739,-435.86,0.00036712,8]
[383922500,1757172703749,-400.0,0.00036712,8]
[383922501,1757172703760,-1534.12,0.00036712,8]
[383922502,1757172703770,-400.0,0.00036712,8]
[383922503,1757172703780,-400.0,0.00036712,8]
[383922504,1757172703791,-2648.5,0.00036712,8]
[383922505,1757172704022,-400.0,0.00036712,8]
[383922506,1757172704034,-1732.85,0.00036712,8]
[383922507,1757172704045,-400.0,0.00036712,8]
[383922508,1757172704055,-400.0,0.00036712,8]
[383922509,1757172704066,-400.0,0.00036712,8]
[383922510,1757172704075,-495.11,0.00036712,8]
[383922511,1757172704085,-400.0,0.00036712,8]
[383922512,1757172704095,-400.0,0.00036712,8]
[383922513,1757172704104,-1089.37,0.00036712,8]
[383922514,1757172704114,-400.0,0.00036712,8]
[383922515,1757172704124,-400.0,0.00036712,8]
[383922516,1757172704135,-400.0,0.00036712,8]
[383922517,1757172704145,-400.0,0.00036712,8]
[383922518,1757172704155,-409.91,0.00036712,8]
[383922519,1757172704165,-367.35809139,0.00036712,8]
[383922520,1757172704175,-2279.31,0.00036712,8]
[383922521,1757172704185,-400.0,0.00036712,8]
[383922522,1757172704194,-400.0,0.00036712,8]
[383922523,1757172704207,-1049.01,0.00036712,8]
[383922524,1757172704216,-400.0,0.00036712,8]
[383922525,1757172704227,-400.0,0.00036712,8]
[383922526,1757172704237,-457.92,0.00036712,8]
[383922527,1757172704247,-427.44,0.00036712,8]
[383922528,1757172704259,-400.0,0.00036712,8]
[383922529,1757172704269,-2989.69,0.00036712,8]
[383922530,1757172704279,-303.621186,0.00036712,8]
[383922531,1757172704289,-255.724684,0.00036712,8]
[383922532,1757172704299,-479.57,0.00036712,8]
[383922533,1757172704309,-571.91,0.00036712,8]
[383922534,1757172704319,-2140.52,0.00036712,8]
[383922535,1757172704328,-400.0,0.00036712,8]
[383922536,1757172704338,-400.0,0.00036712,8]
[383922537,1757172704348,-756.95,0.00036712,8]
[383922538,1757172704358,-400.0,0.00036712,8]
[383922539,1757172704367,-400.0,0.00036712,8]
[383922540,1757172704376,-400.0,0.00036712,8]
[383922541,1757172704386,-400.0,0.00036712,8]
[383922542,1757172704395,-500.0,0.00036712,2]
[383922543,1757172704405,-673.56,0.00036712,8]
[383922544,1757172704416,-400.0,0.00036712,8]
[383922545,1757172704427,-527.78260254,0.00036712,8]
[383922546,1757172704437,-423.16302,0.00036712,8]
[383922547,1757172704447,-400.0,0.00036712,8]
[383922548,1757172704457,-1233.86,0.00036712,8]
[383922549,1757172704466,-945.88,0.00036712,8]
[383922550,1757172704476,-388.36,0.00036712,8]
[383922551,1757172704486,-419.78,0.00036712,8]
[383922552,1757172704496,-418.35587186,0.00036712,8]
[383922553,1757172704506,-604.44,0.00036712,8]
[383922554,1757172704516,-400.0,0.00036712,8]
[383922555,1757172704526,-992.17,0.00036712,8]
[383922556,1757172704535,-400.0,0.00036712,8]
[383922557,1757172704545,-1045.05,0.00036712,8]
[383922558,1757172704555,-400.0,0.00036712,8]
[383922559,1757172704565,-429.91,0.00036712,8]
[383922560,1757172704575,-400.0,0.00036712,8]
[383922561,1757172704585,-400.0,0.00036712,8]
[383922562,1757172704594,-400.0,0.00036712,8]
[383922563,1757172704606,-400.0,0.00036712,8]
[383922564,1757172704616,-413.34,0.00036712,8]
[383922565,1757172704626,-400.0,0.00036712,8]
[383922566,1757172704636,-190.17257977,0.00036712,8]
[383922567,1757172704646,-400.0,0.00036712,8]
[383922568,1757172704655,-400.0,0.00036712,8]
[383922569,1757172704665,-400.0,0.00036712,8]
[383922570,1757172704675,-400.0,0.00036712,8]
[383922571,1757172704685,-400.0,0.00036712,8]
[383922572,1757172704695,-790.23,0.00036712,8]
[383922573,1757172704705,-298.90228237,0.00036712,8]
[383922574,1757172704719,-300.83523223,0.00036712,8]
[383922575,1757172704728,-410.31637119,0.00036712,8]
[383922576,1757172704738,-2436.64,0.00036712,8]
[383922577,1757172704748,-400.0,0.00036712,8]
[383922578,1757172704758,-1094.56,0.00036712,8]
[383922579,1757172704768,-400.0,0.00036712,8]
[383922580,1757172704778,-400.0,0.00036712,8]
[383922581,1757172704789,-154.19154689,0.00036712,8]
[383922582,1757172704799,-400.0,0.00036712,8]
[383922583,1757172704811,-730.61,0.00036712,8]
[383922584,1757172704822,-400.0,0.00036712,8]
[383922585,1757172704832,-535.79,0.00036712,8]
[383922586,1757172704842,-651.47,0.00036712,8]